bitfinex/quotes_ETHUSD_20210401
["timestamp","ask_amount","ask_price","bid_price","bid_amount"]
[1617256153003,51.75923616,1910.9,1910.6,2.0]
[1617256153230,12.4353723,1910.8,1910.6,2.0]
[1617256153430,63.07730176,1910.7,1910.6,2.0]
[1617256153630,83.94260176,1910.7,1910.6,2.0]
[1617256156982,58.9653,1910.7,1910.6,2.0]
[1617256157378,50.9653,1910.7,1910.6,2.0]
[1617256157578,45.9553,1910.7,1910.6,2.0]
[1617256159180,46.1194221,1910.7,1910.6,2.0]
[1617256159380,16.1194221,1910.7,1910.6,2.0]
[1617256159982,8.2641221,1910.7,1910.6,19.56]
[1617256160181,0.1641221,1910.7,1910.6,33.41620176]
[1617256161007,0.1641221,1910.7,1910.6,31.0689]
[1617256162410,7.19917256,1910.9,1910.7,12.85]
[1617256162611,7.19917256,1910.9,1910.8,14.01]
[1617256162811,6.19917256,1910.9,1910.8,17.23]
[1617256163019,12.86043,1911.1,1910.8,17.23]
[1617256163214,4.19862667,1911.4,1911.0,0.399]
[1617256163215,0.27309667,1911.4,1911.0,0.399]
[1617256163415,7.4253723,1912.2,1911.0,0.399]
[1617256163416,11.7932073,1912.6,1911.2,0.399]
[1617256163640,11.7932073,1912.6,1911.8,0.399]
[1617256163641,0.27303422,1912.3,1911.8,0.399]
[1617256163841,0.27303422,1912.3,1911.8,8.972]
[1617256164041,10.46288,1912.2,1912.1,0.399]
[1617256164242,10.46288,1912.2,1912.1,0.41]
[1617256164441,10.46288,1912.2,1911.9,0.399]
[1617256164642,0.27303422,1912.3,1911.9,0.399]
[1617256164839,0.54540908,1912.5,1911.9,0.399]
[1617256164840,0.54540908,1912.5,1912.0,0.301]
[1617256165040,37.45828,1912.6,1912.1,0.809]
[1617256165439,7.74,1912.5,1912.1,0.809]
[1617256166261,7.84608,1912.3,1912.1,0.809]
[1617256166459,7.84608,1912.3,1911.8,11.573]
[1617256166460,7.84608,1912.3,1911.8,8.573]
[1617256166660,7.84608,1912.3,1911.9,0.28]
[1617256167263,5.01,1912.1,1911.9,0.28]
[1617256167661,6.84674,1912.1,1911.9,0.28]
[1617256167861,6.84674,1912.1,1911.9,0.67]
[1617256168063,5.01,1912.0,1911.9,0.67]
[1617256168264,5.01,1912.0,1911.9,1.87]
[1617256168663,5.01,1912.0,1911.9,0.67]
[1617256169520,5.01,1912.0,1911.9,1.87]
[1617256170722,7.84596,1912.3,1911.9,1.87]
[1617256170723,5.01,1912.1,1911.9,1.87]
[1617256170928,5.01,1912.1,1912.0,14.6]
[1617256171123,5.01,1912.1,1912.0,20.24]
[1617256171324,5.01,1912.4,1912.0,20.534]
[1617256171529,3.535,1912.6,1912.3,0.796]
[1617256171724,8.33540047,1912.8,1912.5,0.38]
[1617256171725,8.06248117,1912.8,1912.5,0.38]
[1617256171924,8.06248117,1912.8,1912.5,0.688]
[1617256172125,3.16,1912.7,1912.3,7.9374]
[1617256172325,3.16,1912.7,1912.3,8.2944]
[1617256172723,2.16,1912.7,1912.3,8.2944]
[1617256172924,2.16,1912.7,1912.3,6.4771]
[1617256173125,2.16,1912.7,1912.3,6.4701]
[1617256173324,0.21850117,1912.8,1912.3,6.4701]
[1617256173527,0.21850117,1912.8,1912.4,0.4]
[1617256173725,0.21850117,1912.8,1912.5,0.35]
[1617256174129,7.84504,1912.6,1912.5,0.35]
[1617256174334,5.01,1912.7,1912.5,0.75]
[1617256175130,5.01,1912.7,1912.5,1.95]
[1617256175329,5.01,1912.7,1912.5,0.35]
[1617256175530,12.85479,1912.7,1912.5,0.35]
[1617256176331,12.85479,1912.7,1912.3,0.729]
[1617256176532,5.01,1912.7,1912.5,0.371]
[1617256176753,5.01,1912.7,1912.6,0.39]
[1617256177154,7.01,1912.9,1912.6,0.39]
[1617256177355,2.0,1912.9,1912.6,0.705]
[1617256177555,5.01,1912.7,1912.6,1.905]
[1617256177759,1.0,1912.9,1912.6,1.905]
[1617256177955,1.0,1912.9,1912.6,0.39]
[1617256178760,8.84382,1912.9,1911.9,2.70247792]
[1617256178956,8.84382,1912.9,1912.3,0.539]
[1617256179157,5.01,1912.7,1912.3,0.929]
[1617256179425,5.01,1912.7,1912.4,1.2]
[1617256179624,5.01,1912.7,1912.3,0.929]
[1617256179825,1.0,1912.9,1912.3,0.929]
[1617256179826,6.01,1912.9,1912.3,0.929]
[1617256180226,7.84482,1912.6,1912.3,0.929]
[1617256180625,5.01,1912.4,1912.3,0.39]
[1617256180826,5.01,1912.4,1912.2,0.4]
[1617256181025,5.01,1912.4,1912.2,0.554]
[1617256181229,5.01,1912.6,1912.2,0.28]
[1617256181432,5.01,1912.6,1912.2,0.67]
[1617256181827,7.84557,1912.5,1912.3,0.41]
[1617256182026,7.84557,1912.5,1912.3,0.725]
[1617256182227,7.84557,1912.5,1912.4,1.2]
[1617256182428,5.01,1912.6,1912.4,1.2]
[1617256182826,4.01,1912.6,1912.5,0.39]
[1617256183428,4.01,1912.6,1912.5,9.5219]
[1617256183627,4.01,1912.6,1912.5,10.7219]
[1617256183830,8.84969116,1912.9,1912.6,0.42]
[1617256184033,1.0,1912.9,1912.6,0.42]
[1617256184429,1.0,1912.9,1912.7,0.28]
[1617256186247,1.0,1912.9,1912.7,8.12023]
[1617256186848,1.0,1912.9,1912.6,0.37406894]
[1617256187051,1.0,1912.9,1912.6,0.77406894]
[1617256187260,1.0,1912.9,1912.7,1.2]
[1617256187661,2.61142063,1913.1,1912.7,1.2]
[1617256187860,0.01813872,1913.1,1912.6,0.39]
[1617256188060,0.00604646,1913.0,1912.6,0.39]
[1617256188459,0.00604646,1913.0,1912.7,0.385]
[1617256188660,5.01604646,1913.0,1912.7,0.385]
[1617256188860,5.01604646,1913.0,1912.6,0.39]
[1617256188861,10.31,1912.8,1912.6,0.39]
[1617256189061,10.31,1912.8,1912.2,1.29406894]
[1617256189062,5.01,1912.8,1912.2,1.29406894]
[1617256189265,5.01,1912.9,1912.4,0.56]
[1617256189463,5.01,1912.9,1912.4,0.94]
[1617256189883,5.01,1912.9,1912.5,1.34]
[1617256190082,5.01,1912.9,1912.5,0.14]
[1617256190285,12.85386,1912.9,1912.5,0.14]
[1617256190487,12.85990661,1912.9,1912.5,0.14]
[1617256191489,12.87200008,1912.9,1912.4,0.66]
[1617256191688,12.85990661,1912.9,1912.4,1.86]
[1617256192288,8.51,1912.8,1912.4,1.86]
[1617256192735,3.5,1912.8,1912.6,0.39]
[1617256192935,3.5,1912.8,1912.6,0.67]
[1617256193135,3.5,1912.8,1912.6,1.87]
[1617256193335,3.5,1912.8,1912.6,0.67]
[1617256193736,0.00604661,1912.9,1912.6,1.87]
[1617256193938,0.00604661,1912.9,1912.2,2.91406894]
[1617256194139,0.00604661,1912.9,1912.4,0.567]
[1617256194335,0.00604661,1912.9,1912.5,0.09406894]
[1617256194639,0.00604661,1912.9,1912.5,0.133]
[1617256194836,5.01,1912.8,1912.5,0.133]
[1617256195034,7.84942661,1912.9,1912.5,0.133]
[1617256195236,0.00604661,1912.9,1912.5,0.133]
[1617256195434,0.00604661,1912.9,1912.5,0.22706894]
[1617256196637,0.00604661,1912.9,1912.5,0.133]
[1617256197239,7.84933661,1912.9,1912.5,0.133]
[1617256197438,7.84933661,1912.9,1912.6,0.39]
[1617256197639,5.01,1912.7,1912.6,0.39]
[1617256197859,5.01,1912.7,1912.5,0.133]
[1617256197860,4.01,1912.7,1912.5,0.133]
[1617256198462,4.01,1912.7,1912.5,0.28]
[1617256198663,4.01,1912.7,1912.6,28.7]
[1617256198865,0.00604504,1912.8,1912.6,28.7]
[1617256198866,0.00604478,1912.9,1912.6,30.222]
[1617256199066,0.01208955,1913.0,1912.8,28.68]
[1617256199067,0.00604473,1913.0,1912.8,28.68]
[1617256199269,0.03022378,1913.1,1912.9,29.5]
[1617256199270,0.00604426,1913.1,1912.9,29.5]
[1617256199464,0.00604416,1913.2,1913.0,24.74]
[1617256199663,0.00604416,1913.2,1913.1,21.5]
[1617256199867,0.00604369,1913.3,1913.1,33.35912]
[1617256200067,0.00604369,1913.3,1913.2,17.04]
[1617256200265,0.00604369,1913.3,1913.2,23.02]
[1617256200489,2.01208739,1913.4,1913.2,23.02]
[1617256200490,2.00604354,1913.4,1913.2,23.02]
[1617256201286,2.00604354,1913.4,1913.2,30.85886]
[1617256201685,2.00604354,1913.4,1913.3,14.46]
[1617256201884,2.00604354,1913.4,1913.3,16.09464324]
[1617256202084,2.00604354,1913.4,1913.3,4.7]
[1617256202283,2.00604354,1913.4,1913.3,1.58]
[1617256202685,1.00604354,1913.4,1913.3,1.58]
[1617256202886,1.0,1913.4,1913.3,15.5309724]
[1617256203113,1.0,1913.4,1913.3,20.76858]
[1617256203311,1.0,1913.4,1913.3,24.14858]
[1617256204113,1.0,1913.4,1913.3,23.76858]
[1617256204713,1.0,1913.4,1913.3,24.14858]
[1617256205935,1.0,1913.4,1913.3,22.94858]
[1617256206135,1.0,1913.4,1913.3,3.76]
[1617256206335,1.0,1913.4,1913.3,0.66]
[1617256206739,1.0,1913.4,1913.3,0.28]
[1617256207138,1.0,1913.4,1913.1,1.2]
[1617256207338,1.0,1913.4,1912.8,10.45249]
[1617256207339,1.0,1913.4,1912.8,0.09406894]
[1617256207742,5.01,1913.4,1912.7,0.09406894]
[1617256207939,5.01,1913.3,1912.7,0.09406894]
[1617256208139,9.089,1913.3,1912.7,0.09406894]
[1617256208359,5.01,1913.1,1912.7,0.37406894]
[1617256208562,7.84271,1913.0,1912.7,0.09406894]
[1617256208762,5.01,1912.8,1912.6,17.6231]
[1617256208962,13.7625,1912.8,1912.6,17.6231]
[1617256209162,13.7625,1912.8,1912.6,17.2131]
[1617256210162,21.6059,1912.8,1912.6,17.2131]
[1617256210365,13.95,1912.7,1912.6,17.2131]
[1617256210562,18.96,1912.7,1912.6,17.2131]
[1617256210761,10.01,1912.7,1912.6,17.2131]
[1617256211586,10.41,1912.7,1912.6,17.2131]
[1617256211788,10.41,1912.7,1912.4,20.4277]
[1617256211988,12.4353723,1912.6,1912.4,20.4277]
[1617256212189,5.01,1912.5,1912.4,20.4277]
[1617256212388,23.31,1912.5,1912.4,20.4277]
[1617256212788,12.8567,1912.5,1912.4,20.4277]
[1617256213188,5.01,1912.7,1912.4,22.59324541]
[1617256213388,5.01,1912.7,1912.5,0.42]
[1617256213615,5.01,1912.8,1912.4,23.8677]
[1617256213815,5.4,1913.3,1912.7,0.42306894]
[1617256214033,5.4,1913.3,1912.7,0.729]
[1617256214034,0.39,1913.3,1912.7,0.729]
[1617256214236,0.39,1913.3,1912.4,20.4277]
[1617256214436,7.8426,1913.0,1912.5,0.43006894]
[1617256214636,7.8426,1913.0,1912.5,0.336]
[1617256215033,7.8426,1913.0,1912.4,20.4277]
[1617256215034,0.39,1912.9,1912.4,20.4277]
[1617256215234,5.01,1912.8,1912.4,20.7077]
[1617256215435,5.01,1912.8,1912.4,20.4277]
[1617256215436,21.31989,1912.6,1912.4,20.4277]
[1617256215638,12.71,1912.5,1912.4,20.4277]
[1617256215834,17.72,1912.5,1912.4,20.4277]
[1617256217260,24.92,1912.5,1912.4,20.4277]
[1617256217857,17.72,1912.5,1912.4,20.4277]
[1617256218261,24.97,1912.5,1912.4,20.4277]
[1617256218458,21.0,1912.5,1912.4,19.50765279]
[1617256219059,13.75,1912.5,1912.4,19.50765279]
[1617256219260,22.8,1912.5,1912.4,19.50765279]
[1617256219461,30.8,1912.5,1912.4,19.50765279]
[1617256219861,22.8,1912.5,1912.4,19.50765279]
[1617256220662,13.75,1912.5,1912.4,19.50765279]
[1617256221262,21.95,1912.5,1912.4,19.50765279]
[1617256221688,29.95,1912.5,1912.4,19.50765279]
[1617256222087,21.75,1912.5,1912.4,19.50765279]
[1617256222286,28.3,1912.5,1912.4,19.50765279]
[1617256224714,21.75,1912.5,1912.4,19.50765279]
[1617256225114,5.4,1912.5,1912.4,19.50765279]
[1617256225316,5.01,1912.5,1912.4,19.50765279]
[1617256225516,10.45989,1912.6,1912.4,19.50765279]
[1617256225717,3.80780362,1913.0,1912.4,19.90765279]
[1617256225915,3.80780362,1913.0,1912.5,0.42]
[1617256226516,7.84395,1912.7,1912.5,0.42]
[1617256226740,7.84395,1912.7,1912.4,20.18765279]
[1617256227741,5.01,1912.5,1912.4,20.18765279]
[1617256227942,12.85461,1912.5,1912.4,20.18765279]
[1617256228140,7.84461,1912.5,1912.4,20.18765279]
[1617256228745,7.84461,1912.5,1912.4,19.50765279]
[1617256228957,7.84461,1912.5,1911.8,4.60672173]
[1617256228958,12.85,1912.4,1911.8,4.60672173]
[1617256229159,8.11,1912.3,1912.0,0.588]
[1617256229363,5.01,1912.2,1912.0,0.588]
[1617256229563,5.01,1912.1,1911.8,0.522]
[1617256230169,12.85582,1912.2,1911.8,0.522]
[1617256230764,12.85582,1912.2,1911.8,1.722]
[1617256231164,5.01,1912.2,1911.8,1.722]
[1617256231564,7.84538,1912.3,1912.0,0.588]
[1617256231764,5.01,1912.1,1912.0,0.588]
[1617256232607,5.01,1912.1,1911.8,0.41]
[1617256232809,5.01,1912.0,1911.8,0.69]
[1617256233208,4.96,1912.0,1911.8,0.69]
[1617256233408,4.96,1912.0,1911.9,0.4]
[1617256237015,4.96,1912.0,1911.7,17.4837]
[1617256237239,8.01016622,1912.1,1911.8,0.39]
[1617256237240,5.01,1911.9,1911.8,0.39]
[1617256237641,5.17400622,1912.1,1911.8,0.39]
[1617256238040,7.84639,1912.0,1911.8,0.39]
[1617256238242,5.01,1911.9,1911.8,0.39]
[1617256238443,5.01,1911.9,1911.8,3.11]
[1617256238643,5.17400622,1912.1,1911.8,3.11]
[1617256238843,0.16400622,1912.1,1912.0,6.59]
[1617256239043,0.16400622,1912.1,1912.0,5.79]
[1617256239443,0.16400622,1912.1,1912.0,0.39]
[1617256240064,0.16400622,1912.1,1911.7,17.4837]
[1617256240265,8.00988622,1912.1,1911.8,0.09406894]
[1617256240463,8.00988622,1912.1,1911.8,0.39]
[1617256240664,2.76,1912.0,1911.8,0.39]
[1617256241464,5.17400622,1912.1,1911.8,0.39]
[1617256241866,5.01,1911.9,1911.8,0.39]
[1617256242064,5.01,1911.9,1911.7,17.7637]
[1617256242065,5.01,1912.0,1911.7,17.7637]
[1617256242265,12.85612,1912.0,1911.7,17.7637]
[1617256242492,12.85612,1912.0,1911.7,21.1637]
[1617256242694,12.85612,1912.0,1911.8,0.41]
[1617256244097,12.85612,1912.0,1911.7,17.4837]
[1617256245134,12.85612,1912.0,1911.8,0.38]
[1617256245533,12.85612,1912.0,1911.7,17.4837]
[1617256245733,12.85612,1912.0,1911.8,0.38]
[1617256245934,5.01,1912.0,1911.8,0.38]
[1617256246135,5.01,1912.0,1911.8,10.9446]
[1617256246334,0.16400622,1912.1,1911.8,10.9446]
[1617256246734,0.16400622,1912.1,1911.8,12.4946]
[1617256246935,0.16400622,1912.1,1911.8,12.58866894]
[1617256247137,0.16400622,1912.1,1911.8,11.38866894]
[1617256247335,0.16400622,1912.1,1911.8,3.45]
[1617256247535,0.16400622,1912.1,1911.9,0.38]
[1617256247738,0.16400622,1912.1,1911.8,5.73144743]
[1617256247937,0.16400622,1912.1,1911.8,2.72]
[1617256248337,0.16400622,1912.1,1911.7,17.7637]
[1617256248540,0.16400622,1912.1,1911.8,0.38]
[1617256248738,8.00964622,1912.1,1911.8,0.38]
[1617256249137,5.01,1911.9,1911.8,0.38]
[1617256249337,14.90640622,1912.1,1911.8,0.38]
[1617256249537,9.89640622,1912.1,1911.7,17.4837]
[1617256249741,7.84675,1911.8,1911.7,17.4837]
[1617256251565,5.9562,1911.9,1911.7,17.4837]
[1617256251764,5.01,1911.8,1911.7,17.4837]
[1617256252367,12.8568,1911.8,1911.7,17.4837]
[1617256256419,12.8568,1911.8,1911.6,2.0]
[1617256257222,13.2568,1911.8,1911.6,2.0]
[1617256257822,13.16,1911.7,1911.6,2.0]
[1617256258022,22.2838,1911.7,1911.6,2.0]
[1617256258441,22.44784054,1911.7,1911.6,2.0]
[1617256258641,30.29676054,1911.7,1911.6,2.0]
[1617256259467,22.14676054,1911.7,1911.6,2.0]
[1617256260669,17.13676054,1911.7,1911.6,2.0]
[1617256266526,17.13676054,1911.7,1911.6,1.95]
[1617256266722,8.01296054,1911.7,1911.6,1.95]
[1617256267526,0.16404054,1911.7,1911.6,3.54]
[1617256267724,0.16404054,1911.7,1911.6,31.19]
[1617256267923,0.16404054,1911.7,1911.6,36.77]
[1617256268523,0.16404054,1911.7,1911.6,44.61559]
[1617256270752,0.16404054,1911.7,1911.6,36.77]
[1617256270949,0.16404054,1911.7,1911.6,7.92]
[1617256271150,0.16404054,1911.7,1911.6,4.93799021]
[1617256271770,0.16404054,1911.7,1911.6,17.93799021]
[1617256272171,0.16404054,1911.7,1911.6,19.13799021]
[1617256272372,1.1965301,1911.7,1911.6,19.13799021]
[1617256272572,0.16404054,1911.7,1911.6,23.23799021]
[1617256272972,0.16404054,1911.7,1911.6,9.03799021]
[1617256273172,0.16404054,1911.7,1911.6,4.93799021]
[1617256273375,0.16404054,1911.7,1911.6,2.34]
[1617256273779,5.17404054,1911.7,1911.6,2.34]
[1617256274200,0.16404054,1911.7,1911.6,2.34]
[1617256275206,5.17404054,1911.7,1911.6,2.34]
[1617256275402,5.17404054,1911.7,1911.6,1.95]
[1617256275808,0.16404054,1911.7,1911.6,1.95]
[1617256276010,6.96534054,1911.7,1911.6,1.95]
[1617256276204,14.81293054,1911.7,1911.6,1.95]
[1617256284275,14.89128115,1911.7,1911.6,1.95]
[1617256285498,14.89128115,1911.7,1911.6,8.2]
[1617256285698,7.04369115,1911.7,1911.6,8.2]
[1617256285899,0.24239115,1911.7,1911.6,8.61]
[1617256286299,5.25239115,1911.7,1911.6,8.61]
[1617256286501,0.24239115,1911.7,1911.6,8.61]
[1617256286898,0.24239115,1911.7,1911.6,2.36]
[1617256287528,0.24239115,1911.7,1911.6,8.01]
[1617256288328,5.25239115,1911.7,1911.6,8.01]
[1617256288729,0.24239115,1911.7,1911.6,8.01]
[1617256289328,5.25239115,1911.7,1911.6,8.01]
[1617256289746,5.25239115,1911.7,1911.6,2.36]
[1617256290549,5.25239115,1911.7,1911.6,12.51]
[1617256291347,0.24239115,1911.7,1911.6,12.51]
[1617256291547,0.24239115,1911.7,1911.6,18.61]
[1617256291751,0.24239115,1911.7,1911.6,21.43]
[1617256292149,0.24239115,1911.7,1911.6,22.63]
[1617256293401,0.24239115,1911.7,1911.6,30.47522]
[1617256293801,0.24239115,1911.7,1911.6,22.63]
[1617256294602,0.24239115,1911.7,1911.6,16.53]
[1617256296001,7.68472955,1911.9,1911.7,10.1]
[1617256296203,7.84669,1911.8,1911.7,4.4]
[1617256296404,14.17349,1911.8,1911.7,0.8]
[1617256297627,14.17349,1911.8,1911.7,0.97049396]
[1617256298028,14.17349,1911.8,1911.7,0.55049396]
[1617256298426,14.17349,1911.8,1911.7,6.20049396]
[1617256298427,6.3268,1911.8,1911.7,6.20049396]
[1617256298630,0.00606939,1911.9,1911.7,6.20049396]
[1617256298831,0.00606939,1911.9,1911.7,0.45049396]
[1617256299034,0.00606939,1911.9,1911.7,0.84049396]
[1617256299233,5.01606939,1911.9,1911.7,0.84049396]
[1617256299432,0.00606939,1911.9,1911.7,0.84049396]
[1617256300277,1.0500604,1911.9,1911.7,0.84049396]
[1617256300477,15.4905084,1912.0,1911.7,0.84049396]
[1617256300679,0.00606996,1911.9,1911.7,0.84049396]
[1617256300878,5.01607084,1912.0,1911.7,0.84049396]
[1617256301077,0.00607084,1912.0,1911.7,0.84049396]
[1617256301478,7.85201084,1912.0,1911.9,0.39]
[1617256302478,7.85201084,1912.0,1911.7,0.17049396]
[1617256302678,7.85201084,1912.0,1911.7,0.88549396]
[1617256302880,0.00607603,1911.9,1911.7,0.88549396]
[1617256303082,7.85250603,1911.9,1911.7,0.88549396]
[1617256304117,11.35250603,1911.9,1911.7,0.88549396]
[1617256305728,7.85250603,1911.9,1911.7,0.88549396]
[1617256305927,7.85250603,1911.9,1911.7,0.57049396]
[1617256306127,5.01,1911.8,1911.7,0.57049396]
[1617256306328,5.01,1911.8,1911.7,7.97049396]
[1617256306729,5.01607603,1911.9,1911.7,7.97049396]
[1617256307130,7.85278909,1911.8,1911.7,7.97049396]
[1617256308334,7.85278909,1911.8,1911.7,0.17049396]
[1617256309932,8.01682105,1911.8,1911.7,0.17049396]
[1617256312763,8.02897872,1911.8,1911.7,0.17049396]
[1617256313161,8.02290963,1911.8,1911.7,0.17049396]
[1617256313379,8.02290963,1911.8,1911.6,1.849696]
[1617256313578,5.01607507,1911.7,1911.6,1.849696]
[1617256314379,5.02214077,1911.7,1911.6,1.849696]
[1617256314580,12.87006077,1911.7,1911.6,1.849696]
[1617256315583,13.03410131,1911.7,1911.6,1.849696]
[1617256318406,13.04018079,1911.7,1911.6,1.849696]
[1617256321262,14.08323692,1911.7,1911.6,1.849696]
[1617256321458,13.04018079,1911.7,1911.6,1.849696]
[1617256321657,22.68088079,1911.7,1911.6,1.849696]
[1617256328014,17.67088079,1911.7,1911.6,1.849696]
[1617256328214,8.03018079,1911.7,1911.6,1.849696]
[1617256328415,10.01018079,1911.7,1911.6,1.849696]
[1617256330632,9.99196054,1911.7,1911.6,1.849696]
[1617256331032,10.01013316,1911.7,1911.6,1.849696]
[1617256331432,9.99196054,1911.7,1911.6,1.849696]
[1617256332059,10.0101276,1911.7,1911.6,16.399696]
[1617256332258,2.1622076,1911.7,1911.6,20.399696]
[1617256333057,2.15614595,1911.7,1911.6,20.399696]
[1617256335385,2.15614595,1911.7,1911.6,21.599696]
[1617256335986,2.15614595,1911.7,1911.6,7.049696]
[1617256336185,2.15614595,1911.7,1911.6,5.849696]
[1617256336785,2.15614595,1911.7,1911.6,6.249696]
[1617256337024,2.15614595,1911.7,1911.6,2.249696]
[1617256337225,10.00258595,1911.7,1911.6,2.249696]
[1617256338026,10.00258595,1911.7,1911.6,10.699696]
[1617256338227,2.15614595,1911.7,1911.6,10.699696]
[1617256338426,2.15614595,1911.7,1911.6,11.899696]
[1617256338826,2.15008951,1911.7,1911.6,11.899696]
[1617256339633,2.15008951,1911.7,1911.6,10.299696]
[1617256339838,9.99631951,1911.7,1911.6,10.299696]
[1617256340033,10.00236623,1911.7,1911.6,12.94287658]
[1617256340433,10.00236623,1911.7,1911.6,4.49287658]
[1617256340633,9.99631767,1911.7,1911.6,4.49287658]
[1617256341034,10.0084116,1911.7,1911.6,4.49287658]
[1617256341234,10.00236447,1911.7,1911.6,4.49287658]
[1617256341435,10.00236447,1911.7,1911.6,1.849696]
[1617256341835,10.00236447,1911.7,1911.6,2.249696]
[1617256342036,10.00236447,1911.7,1911.6,8.899696]
[1617256342668,2.15613447,1911.7,1911.6,8.899696]
[1617256342870,2.15613447,1911.7,1911.6,16.699696]
[1617256343070,2.15613447,1911.7,1911.6,19.639696]
[1617256343871,2.15613447,1911.7,1911.6,11.839696]
[1617256344671,2.15008689,1911.7,1911.6,13.039696]
[1617256345282,2.15008689,1911.7,1911.6,11.839696]
[1617256345483,2.15008689,1911.7,1911.6,13.039696]
[1617256345683,2.15008689,1911.7,1911.6,11.839696]
[1617256345884,2.15008689,1911.7,1911.6,11.439696]
[1617256346083,2.15008689,1911.7,1911.6,8.499696]
[1617256346683,9.99659689,1911.7,1911.6,8.499696]
[1617256349310,2.15008689,1911.7,1911.6,8.899696]
[1617256349513,2.15008689,1911.7,1911.6,1.849696]
[1617256349711,2.15008689,1911.7,1911.6,2.849696]
[1617256350733,9.99658689,1911.7,1911.6,2.849696]
[1617256353778,9.99658689,1911.7,1911.6,3.129696]
[1617256354180,2.15008689,1911.7,1911.6,3.129696]
[1617256354782,2.15008689,1911.7,1911.6,12.229696]
[1617256355180,2.15008689,1911.7,1911.6,3.129696]
[1617256355586,9.99630689,1911.7,1911.6,3.129696]
[1617256355984,2.15008689,1911.7,1911.6,3.129696]
[1617256356385,2.15008689,1911.7,1911.6,3.519696]
[1617256356784,2.15008689,1911.7,1911.6,17.569696]
[1617256356985,2.15008689,1911.7,1911.6,22.849696]
[1617256358011,2.14404054,1911.7,1911.6,22.849696]
[1617256361437,2.14404054,1911.7,1911.6,24.049696]
[1617256362642,2.14404054,1911.7,1911.6,31.894266]
[1617256362838,2.14404054,1911.7,1911.6,24.049696]
[1617256363038,2.14404054,1911.7,1911.6,8.409696]
[1617256363263,2.14404054,1911.7,1911.6,2.849696]
[1617256363463,2.14404054,1911.7,1911.6,3.129696]
[1617256363663,2.14404054,1911.7,1911.6,14.579696]
[1617256364269,2.14404054,1911.7,1911.6,15.779696]
[1617256364464,2.14404054,1911.7,1911.6,15.179696]
[1617256364465,1.14404054,1911.7,1911.6,15.179696]
[1617256364664,0.00605417,1911.8,1911.6,15.179696]
[1617256365065,0.00605417,1911.8,1911.7,16.2383364]
[1617256365268,0.00605417,1911.8,1911.7,19.4983364]
[1617256367890,1.15008292,1911.9,1911.7,19.4983364]
[1617256368089,1.15008292,1911.9,1911.8,10.60604921]
[1617256368290,8.99542292,1911.9,1911.8,15.10604921]
[1617256369111,8.99542292,1911.9,1911.8,4.90604921]
[1617256369313,8.99542292,1911.9,1911.8,0.12604921]
[1617256369712,9.00749912,1911.9,1911.8,0.12604921]
[1617256369912,9.00145674,1911.9,1911.8,0.12604921]
[1617256372541,9.00145674,1911.9,1911.8,7.13604921]
[1617256372741,9.00145674,1911.9,1911.8,0.78604921]
[1617256373145,9.00145674,1911.9,1911.8,0.40604921]
[1617256374970,9.00145674,1911.9,1911.8,1.46452259]
[1617256375169,9.00145674,1911.9,1911.8,0.12604921]
[1617256376587,9.00145674,1911.9,1911.8,0.40604921]
[1617256376989,9.00145674,1911.9,1911.8,0.12604921]
[1617256377388,9.38145674,1911.9,1911.8,0.12604921]
[1617256377588,11.07922765,1911.9,1911.8,0.12604921]
[1617256377788,10.69922765,1911.9,1911.8,0.12604921]
[1617256378391,10.69922765,1911.9,1911.8,0.40604921]
[1617256378788,10.69922765,1911.9,1911.8,0.12604921]
[1617256382438,10.69922765,1911.9,1911.8,0.40604921]
[1617256382638,1.31411924,1911.9,1911.8,0.40604921]
[1617256384041,1.32622772,1911.9,1911.8,0.40604921]
[1617256384267,9.17221772,1911.9,1911.8,0.40604921]
[1617256384470,9.16010924,1911.9,1911.8,0.40604921]
[1617256386468,1.31411924,1911.9,1911.8,7.79604921]
[1617256388088,1.31411924,1911.9,1911.8,0.79604921]
[1617256388487,1.31411924,1911.9,1911.8,7.54604921]
[1617256389713,1.31411924,1911.9,1911.8,7.64404921]
[1617256390313,1.31411924,1911.9,1911.8,19.99404921]
[1617256390514,1.31411924,1911.9,1911.8,23.57404921]
[1617256391114,1.31411924,1911.9,1911.8,31.41797921]
[1617256391914,1.31411924,1911.9,1911.8,23.57404921]
[1617256392138,1.31411924,1911.9,1911.8,11.22404921]
[1617256392337,1.31411924,1911.9,1911.8,14.69404921]
[1617256392938,1.30806392,1911.9,1911.8,14.69404921]
[1617256393538,1.30806392,1911.9,1911.8,7.64404921]
[1617256393939,1.30806392,1911.9,1911.8,9.65333679]
[1617256394338,1.30806392,1911.9,1911.8,17.40333679]
[1617256394537,1.30806392,1911.9,1911.8,20.50333679]
[1617256395962,1.30806392,1911.9,1911.8,12.36333679]
[1617256396360,1.30806392,1911.9,1911.8,12.65533679]
[1617256397409,1.30806392,1911.9,1911.8,18.30533679]
[1617256397610,1.30806392,1911.9,1911.8,12.65533679]
[1617256400516,1.30806392,1911.9,1911.8,20.49923679]
[1617256400916,1.30806392,1911.9,1911.8,29.66243679]
[1617256401116,1.30806392,1911.9,1911.8,37.66243679]
[1617256401315,1.30806392,1911.9,1911.8,50.06243679]
[1617256401516,1.30806392,1911.9,1911.8,53.06243679]
[1617256401715,1.30806392,1911.9,1911.8,64.45712031]
[1617256403942,1.30806392,1911.9,1911.8,61.45712031]
[1617256406266,1.30806392,1911.9,1911.8,54.05712031]
[1617256407267,0.57661426,1911.9,1911.8,59.25712031]